bitfinex/quotes_ETHUSD_20220111
["timestamp","ask_amount","ask_price","bid_price","bid_amount"]
[1641907817881,0.00511581,3123.2,3123.0,0.89621964]
[1641907818277,0.00454738,3123.1,3123.0,0.89621964]
[1641907819279,0.00454738,3123.1,3122.9,1.98608687]
[1641907819683,7.896e-05,3123.0,3122.9,20.98608687]
[1641907819881,4.3e-05,3123.7,3123.0,6.75]
[1641907820083,4.3e-05,3123.7,3123.3,0.47354257]
[1641907820289,0.00341054,3123.6,3123.4,1.90779945]
[1641907820725,4.3e-05,3123.7,3123.4,1.90779945]
[1641907820726,0.00284212,3123.5,3123.4,1.90779945]
[1641907820926,0.00284212,3123.5,3123.4,1.16116206]
[1641907821130,0.00284212,3123.5,3123.3,0.47354257]
[1641907821326,0.00284212,3123.5,3123.4,2.72119506]
[1641907821528,4.3e-05,3123.7,3123.4,2.72119506]
[1641907821926,0.00341054,3123.6,3123.4,2.72119506]
[1641907822126,0.00341054,3123.6,3123.3,2.09558347]
[1641907822327,0.00284212,3123.5,3123.3,1.27407257]
[1641907822727,0.0022737,3123.4,3123.3,1.27407257]
[1641907823128,0.0022737,3123.4,3123.3,0.47354257]
[1641907824474,0.0022737,3123.4,3123.3,2.59010192]
[1641907825075,0.0022737,3123.4,3123.3,3.06364449]
[1641907826079,0.0022737,3123.4,3123.3,2.39602442]
[1641907826478,0.0022737,3123.4,3123.3,0.94708514]
[1641907827078,3.8022737,3123.4,3123.3,0.94708514]
[1641907827485,4.8022737,3123.4,3123.3,0.94708514]
[1641907827779,1.0022737,3123.4,3123.3,0.94708514]
[1641907828050,0.0022737,3123.4,3123.3,0.94708514]
[1641907830738,1.01274168,3124.3,3123.3,0.94708514]
[1641907830939,1.01274168,3124.3,3123.5,0.80053]
[1641907831139,0.00454738,3124.2,3123.5,0.80053]
[1641907831340,0.00454738,3124.2,3123.9,0.47354257]
[1641907831542,0.00397896,3124.1,3123.9,0.47354257]
[1641907831979,3.50341054,3124.0,3123.9,0.47354257]
[1641907832180,4.50341054,3124.0,3123.9,0.47354257]
[1641907832984,6.65,3123.9,3123.8,0.47354257]
[1641907833182,11.34735606,3123.9,3123.8,0.47354257]
[1641907833379,11.35019817,3123.9,3123.8,0.47354257]
[1641907834384,6.75,3123.8,3122.6,1.1579]
[1641907834582,0.80083,3123.2,3122.6,1.1579]
[1641907834781,0.80083,3123.2,3122.7,0.00397897]
[1641907835183,1.60166,3123.5,3122.6,0.00454739]
[1641907835385,1.90166,3123.5,3122.7,0.80074]
[1641907835640,1.60166,3123.5,3122.7,0.80074]
[1641907835835,5.79520527,3123.7,3122.8,0.00341055]
[1641907836036,6.09520527,3123.7,3122.8,0.00341055]
[1641907836245,0.00113684,3123.6,3122.8,0.00341055]
[1641907836740,0.00113684,3123.6,3123.4,1.6220409]
[1641907837138,3.53796516,3123.6,3123.4,1.6220409]
[1641907837336,3.53796516,3123.6,3123.3,1.6220409]
[1641907837337,2.71666981,3123.5,3123.3,1.6220409]
[1641907837537,2.71666981,3123.5,3123.1,2.41620458]
[1641907837538,6.75,3123.4,3123.1,2.41620458]
[1641907837740,3.73448994,3123.3,3123.1,2.41620458]
[1641907837939,4.03448994,3123.3,3123.2,0.00113685]
[1641907838136,1.064,3123.3,3123.2,0.00113685]
[1641907838736,0.764,3123.3,3122.8,0.00341055]
[1641907838937,0.80086,3123.1,3122.8,2.41961513]
[1641907839135,0.464,3123.0,3122.8,2.41961513]
[1641907839380,0.464,3123.0,3122.8,2.3690467]
[1641907840177,0.464,3123.0,3122.6,3.2216061]
[1641907840377,0.464,3123.0,3122.7,3.2216061]
[1641907840580,0.464,3123.0,3122.7,1.78074295]
[1641907841178,0.464,3123.0,3122.8,1.39002028]
[1641907841387,1.0,3123.4,3122.8,1.39002028]
[1641907841584,1.0,3123.4,3122.8,1.32602028]
[1641907841887,0.00227369,3123.3,3122.8,1.32602028]
[1641907842281,0.00170527,3123.2,3122.8,1.32602028]
[1641907842580,0.00113684,3123.1,3122.8,1.32602028]
[1641907843030,0.00227369,3123.3,3122.8,1.32602028]
[1641907843531,0.00170527,3123.2,3122.8,2.23068638]
[1641907843929,0.00113684,3123.1,3122.8,2.23068638]
[1641907844333,0.0364178,3123.2,3122.7,0.00113685]
[1641907844535,0.00227369,3123.3,3122.7,0.00113685]
[1641907844732,0.00113684,3123.1,3122.7,0.00113685]
[1641907844932,0.00170527,3123.2,3122.7,0.00113685]
[1641907845132,0.80308369,3123.3,3122.5,0.0022737]
[1641907845332,0.00113684,3123.1,3122.5,0.0022737]
[1641907845541,3.54624404,3123.3,3122.5,0.0022737]
[1641907845542,0.80595204,3123.2,3122.5,0.0022737]
[1641907845734,0.80595204,3123.2,3122.3,0.00341054]
[1641907845932,0.00113684,3123.1,3122.3,0.00341054]
[1641907846134,0.464,3123.0,3122.3,0.00341054]
[1641907846433,0.764,3123.0,3122.3,0.00341054]
[1641907846633,0.80089,3122.9,3122.3,0.00341054]
[1641907846879,0.464,3122.8,3122.3,0.00341054]
[1641907847082,0.464,3122.8,3121.9,7.69839826]
[1641907847083,0.464,3122.8,3122.2,0.00397897]
[1641907847680,0.464,3122.8,3122.0,0.00511581]
[1641907847878,0.464,3122.8,3122.6,1.62901167]
[1641907848081,3.451,3122.7,3122.6,1.62901167]
[1641907848484,4.051,3122.7,3122.6,1.63071694]
[1641907848688,1.401,3122.7,3122.6,1.63071694]
[1641907848880,1.101,3122.7,3122.6,0.00170527]
[1641907849479,1.401,3122.7,3122.6,0.00170527]
[1641907850534,1.101,3122.7,3122.6,0.00170527]
[1641907851135,1.101,3122.7,3122.5,0.0022737]
[1641907851536,1.101,3122.7,3122.3,0.00341054]
[1641907852637,0.801,3122.7,3122.3,0.00341054]
[1641907852938,2.06587,3123.0,3122.2,0.00397897]
[1641907853137,2.06587,3123.0,3122.2,1.63408083]
[1641907853540,0.464,3123.0,3122.3,0.00341054]
[1641907853738,0.464,3123.0,3122.5,1.22793902]
[1641907854139,0.464,3123.0,3122.6,0.00170527]
[1641907854140,0.3,3123.0,3122.6,0.00170527]
[1641907854604,1.10201684,3123.1,3122.6,2.7230515]
[1641907855303,1.10201684,3123.1,3122.6,0.00170527]
[1641907855906,1.10201684,3123.1,3122.6,2.7230515]
[1641907856508,1.40201684,3123.1,3122.6,0.00170527]
[1641907856911,1.40201684,3123.1,3122.5,0.0022737]
[1641907857111,1.40201684,3123.1,3122.7,2.72134623]
[1641907857717,1.40201684,3123.1,3122.5,2.72361993]
[1641907858131,1.40201684,3123.1,3122.6,0.00170527]
[1641907858326,1.40201684,3123.1,3122.8,2.72134623]
[1641907858926,1.40201684,3123.1,3122.6,2.7230515]
[1641907859528,1.40201684,3123.1,3122.9,2.72134623]
[1641907860435,1.40201684,3123.1,3122.6,0.00170527]
[1641907860630,0.80201684,3123.1,3122.8,1.3559605]
[1641907860831,0.80201684,3123.1,3123.0,2.72134623]
[1641907861332,0.00113684,3123.1,3122.9,3.38837557]
[1641907862181,0.00113684,3123.1,3123.0,7.12134623]
[1641907862579,0.00113684,3123.1,3123.0,2.72134623]
[1641907864584,0.00113684,3123.1,3123.0,5.27134623]
[1641907865832,0.00113684,3123.1,3123.0,2.72134623]
[1641907866634,0.00113684,3123.1,3123.0,7.92134623]
[1641907866834,0.00113684,3123.1,3123.0,8.22134623]
[1641907867637,0.00113684,3123.1,3123.0,7.92134623]
[1641907868242,0.00113684,3123.1,3123.0,27.22134623]
[1641907869292,0.00113684,3123.1,3123.0,32.93303315]
[1641907869885,0.00113684,3123.1,3123.0,14.23303315]
[1641907870082,0.00113684,3123.1,3123.0,13.93303315]
[1641907870787,0.00113684,3123.1,3123.0,7.40293129]
[1641907871084,0.00113684,3123.1,3123.0,7.10293129]
[1641907871690,0.00113684,3123.1,3123.0,6.80293129]
[1641907872688,0.00113684,3123.1,3123.0,2.72134623]
[1641907874837,0.00113684,3123.1,3123.0,5.16986628]
[1641907875240,0.00113684,3123.1,3122.9,5.16986628]
[1641907875843,0.464,3123.8,3122.9,5.16986628]
[1641907876042,0.764,3123.8,3123.4,1.16359219]
[1641907876242,0.764,3123.8,3123.0,2.72134623]
[1641907876243,0.00341054,3123.5,3123.0,2.72134623]
[1641907876640,0.00284212,3123.4,3123.0,2.72134623]
[1641907876889,0.00284212,3123.4,3123.2,1.63232965]
[1641907877092,0.764,3123.8,3123.2,1.63232965]
[1641907877093,0.00227369,3123.3,3123.2,1.63232965]
[1641907878694,0.00227369,3123.3,3123.2,2.54229058]
[1641907879088,0.00227369,3123.3,3123.2,0.90996093]
[1641907879489,0.00227369,3123.3,3123.2,3.85996093]
[1641907879692,0.00227369,3123.3,3123.2,6.58130716]
[1641907880539,0.00227369,3123.3,3123.2,9.53130716]
[1641907880840,0.00227369,3123.3,3123.2,7.75830716]
[1641907881239,11.02048997,3124.6,3123.2,7.75830716]
[1641907881542,0.00682108,3124.5,3123.8,2.12213177]
[1641907881742,0.00682108,3124.5,3123.8,1.31187938]
[1641907881941,0.00625266,3124.4,3123.8,1.31187938]
[1641907882138,1.0,3124.1,3123.8,1.31187938]
[1641907882341,1.0,3124.1,3123.5,1.63218752]
[1641907882540,0.00397897,3124.0,3123.9,2.72134623]
[1641907883345,0.00397897,3124.0,3123.6,1.63218752]
[1641907883742,1.6,3124.1,3123.6,1.63218752]
[1641907883743,0.00341054,3123.9,3123.6,1.63218752]
[1641907884144,0.00284212,3123.8,3123.4,1.63218752]
[1641907884585,1.6,3124.1,3123.4,1.63218752]
[1641907884586,0.0022737,3123.7,3123.4,1.63218752]
[1641907884986,0.00170527,3123.6,3123.4,1.63218752]
[1641907885188,0.00170527,3123.6,3123.3,1.63218752]
[1641907885391,0.00113685,3123.5,3123.3,1.63218752]
[1641907885788,0.00341054,3123.9,3123.3,1.63218752]
[1641907886094,0.00284212,3123.8,3123.3,1.63218752]
[1641907886491,0.0022737,3123.7,3123.3,1.63218752]
[1641907886688,0.80071,3123.6,3123.3,1.63218752]
[1641907886888,1.10241527,3123.6,3123.3,1.63218752]
[1641907887190,0.00113685,3123.5,3123.3,1.63218752]
[1641907891249,0.00113685,3123.5,3123.3,3.12037771]
[1641907892081,0.00113685,3123.5,3123.3,1.48819019]
[1641907892778,0.00113685,3123.5,3123.3,2.25950337]
[1641907892981,0.00113685,3123.5,3123.3,1.48819019]
[1641907893782,0.00113685,3123.5,3123.0,3.9828]
[1641907894180,0.00113685,3123.5,3123.2,0.9358241]
[1641907897635,0.00113685,3123.5,3123.3,1.48342513]
[1641907897835,0.00113685,3123.5,3123.4,6.4406463]
[1641907898034,0.00113685,3123.5,3123.4,2.4406463]
[1641907899383,0.00113685,3123.5,3123.4,5.16091632]
[1641907900183,0.00113685,3123.5,3123.4,9.16091632]
[1641907900786,0.00113685,3123.5,3123.4,8.86091632]
[1641907901388,0.00113685,3123.5,3123.4,27.56091632]
[1641907901985,1.2087,3124.9,3123.5,7.4503115]
[1641907902187,1.2087,3124.9,3124.0,0.80033]
[1641907902387,0.0073895,3124.8,3124.2,0.77409111]
[1641907902789,0.00682108,3124.7,3124.2,0.77409111]
[1641907903235,0.00625266,3124.6,3124.4,1.40081867]
[1641907903635,0.80031,3125.2,3124.4,1.40081867]
[1641907903636,0.00568423,3124.5,3124.4,1.40081867]
[1641907904034,0.00909477,3124.5,3124.4,1.40081867]
[1641907904442,0.00909477,3124.5,3124.4,4.12108869]
[1641907906238,0.00909477,3124.5,3124.4,6.67308696]
[1641907907190,0.00909477,3124.5,3124.4,5.75327621]
[1641907907592,0.00909477,3124.5,3124.4,4.12108869]
[1641907907994,0.00909477,3124.5,3124.4,2.72027002]
[1641907909497,0.00909477,3124.5,3124.3,2.72027002]
[1641907909891,0.00511581,3124.4,3124.3,2.72027002]
[1641907912533,0.00511581,3124.4,3124.3,5.24878668]
[1641907912932,0.00511581,3124.4,3124.2,1.91611818]
[1641907913333,0.00454739,3124.3,3124.2,1.91611818]
[1641907914385,0.00454739,3124.3,3124.2,4.47529739]
[1641907915884,0.00454739,3124.3,3124.2,1.91611818]
[1641907916486,0.00454739,3124.3,3124.2,4.49033684]
[1641907918147,0.00454739,3124.3,3124.2,1.91611818]
[1641907918544,0.00454739,3124.3,3124.2,4.49010641]
[1641907918744,0.00454739,3124.3,3124.2,3.7160153]
[1641907919750,0.00454739,3124.3,3124.2,1.14202707]
[1641907920550,0.00454739,3124.3,3124.2,2.01567349]
[1641907921983,0.00454739,3124.3,3124.2,1.14202707]
[1641907922986,0.00454739,3124.3,3123.9,3.42167573]
[1641907923189,0.00454739,3124.3,3123.8,5.0028]
[1641907923389,0.80042,3124.8,3123.8,5.0028]
[1641907923390,0.00397896,3124.2,3123.8,5.0028]
[1641907923788,0.00341054,3124.1,3123.8,5.0028]
[1641907924190,0.00284212,3124.0,3123.8,5.0028]
[1641907924388,0.00284212,3124.0,3123.3,5.71377258]
[1641907924596,0.00227369,3123.9,3123.3,6.87497258]
[1641907924791,0.00227369,3123.9,3123.3,5.71377258]
[1641907924989,0.00170527,3123.8,3123.3,5.71377258]
[1641907925194,0.00170527,3123.8,3123.2,5.71377258]
[1641907925392,0.00113685,3123.7,3123.2,5.71377258]
[1641907925633,0.00113685,3123.7,3123.3,0.00113685]
[1641907925833,0.00227369,3123.9,3123.3,0.00113685]
[1641907926134,0.464,3124.0,3123.3,0.00113685]
[1641907926135,0.00170527,3123.8,3123.3,0.00113685]
[1641907926335,0.80074,3123.6,3123.3,0.00113685]
[1641907927035,0.80074,3123.6,3123.1,0.0022737]
[1641907928835,1.10074,3123.6,3123.1,0.0022737]
[1641907929035,1.10074,3123.6,3123.1,2.72299878]
[1641907929484,1.10074,3123.6,3123.2,0.00170527]
[1641907930287,1.10074,3123.6,3123.1,2.72299878]
[1641907930492,0.00113685,3123.7,3123.1,2.72299878]
[1641907930689,0.00113685,3123.7,3123.2,0.00170527]
[1641907932190,0.00113685,3123.7,3123.3,0.76090492]
[1641907932791,0.00113685,3123.7,3123.4,2.72072508]
[1641907934544,0.00113685,3123.7,3123.2,3.5576413]
[1641907934744,0.00113685,3123.7,3123.2,2.72243035]
[1641907935144,0.00113685,3123.7,3123.5,1.10277817]
[1641907935945,0.00113685,3123.7,3123.6,2.72072508]
[1641907938000,0.00113685,3123.7,3123.6,3.46663369]
[1641907938398,0.00113685,3123.7,3123.6,6.86795413]
[1641907938599,0.00113685,3123.7,3123.6,4.22973369]
[1641907938801,0.00113685,3123.7,3123.6,10.32973369]
[1641907938998,3.685e-05,3123.7,3123.6,14.03164552]
[1641907939201,3.685e-05,3123.7,3123.6,33.19564552]
[1641907939798,0.47960048,3125.5,3123.8,18.7]
[1641907940000,0.47960048,3125.5,3125.3,0.71756028]
[1641907940200,13.5244,3125.8,3125.4,1.51875854]
[1641907940201,6.09,3125.8,3125.4,1.51875854]
[1641907940397,6.09,3126.5,3126.1,1.20018453]
[1641907940639,1.43254957,3126.4,3126.1,1.20018453]
[1641907941236,1.43254957,3126.4,3126.2,0.93087945]
[1641907941635,2.23255957,3126.4,3126.2,0.93087945]
[1641907942037,0.9454964,3126.4,3126.2,1.61597945]
[1641907942937,0.61574814,3126.9,3126.3,9.38822044]
[1641907942938,0.128127,3126.9,3126.3,9.38822044]
[1641907943141,0.128127,3126.9,3126.3,10.98740044]
[1641907943344,0.01762112,3126.8,3126.7,1.18006335]
[1641907943538,0.01762112,3126.8,3126.3,3.6428]
[1641907943738,0.81753112,3126.8,3125.8,3.7834]
[1641907943942,0.0170527,3126.7,3125.6,4.08158506]
[1641907944142,0.0170527,3126.7,3125.7,2.63822044]
[1641907944420,0.01648428,3126.6,3125.7,3.43798044]
[1641907944812,0.01591585,3126.5,3125.7,22.13798044]
[1641907945010,0.01591585,3126.5,3126.4,0.67977183]
[1641907945212,0.128127,3126.9,3126.4,1.87511947]
[1641907945609,0.01762112,3126.8,3126.4,1.87511947]
[1641907946017,0.0170527,3126.7,3126.5,2.71828057]
[1641907946411,0.01648428,3126.6,3126.5,2.71828057]
[1641907946812,0.01648428,3126.6,3126.5,2.51511948]
[1641907947214,0.01648428,3126.6,3126.4,1.87511947]
[1641907947611,0.01591585,3126.5,3126.4,1.87511947]
[1641907948437,0.01591585,3126.5,3126.4,4.44718016]
[1641907948837,0.01591585,3126.5,3126.4,1.87511947]
[1641907951640,0.01591585,3126.5,3125.8,4.08158506]
[1641907952093,0.81534743,3126.4,3125.8,4.08158506]
[1641907952293,1.11534743,3126.4,3125.5,3.8879]
[1641907952593,0.01477901,3126.3,3126.0,0.6704433]
[1641907952792,0.01477901,3126.3,3126.1,1.14319448]
[1641907952998,0.01421058,3126.2,3126.1,1.14319448]
[1641907955641,0.01421058,3126.2,3126.1,2.76045419]
[1641907956241,0.01421058,3126.2,3126.1,4.54885402]
[1641907956841,0.01421058,3126.2,3126.1,2.76045419]
[1641907957044,0.01421058,3126.2,3126.1,2.93271963]
[1641907957246,0.01421058,3126.2,3126.1,1.14319448]
[1641907957441,0.01421058,3126.2,3126.1,2.94479815]
[1641907958244,0.01421058,3126.2,3126.1,1.14319448]
[1641907958446,0.01421058,3126.2,3126.1,5.40723357]
[1641907958645,0.01421058,3126.2,3126.1,3.00723357]
[1641907959386,0.01421058,3126.2,3126.1,1.14319448]
[1641907959587,0.01421058,3126.2,3126.1,24.34319448]
[1641907959992,0.01421058,3126.2,3126.1,28.42477954]
[1641907960188,0.01421058,3126.2,3126.1,31.68915458]
[1641907960789,0.01421058,3126.2,3126.1,31.98915458]
[1641907961190,0.01421058,3126.2,3126.1,28.72477954]
[1641907961795,0.01421058,3126.2,3126.1,23.92477954]
[1641907963341,0.01421058,3126.2,3126.1,26.64282523]
[1641907963840,0.01421058,3126.2,3126.1,29.90720027]
[1641907964041,3.6279,3127.7,3126.1,29.90720027]
[1641907964042,3.655,3127.8,3126.7,0.79956]
[1641907964240,3.655,3127.8,3126.7,2.86339838]
[1641907964443,3.655,3127.8,3127.6,1.32072074]
[1641907964641,6.09,3128.0,3127.6,1.32072074]
[1641907965041,0.00909478,3127.8,3127.6,1.32072074]
[1641907965440,6.09,3128.0,3127.7,0.76382476]
[1641907965739,2.75909478,3127.8,3127.7,3.48187045]
[1641907965940,0.00909478,3127.8,3127.7,3.48187045]
[1641907966342,0.00909478,3127.8,3127.7,0.76382476]
[1641907966542,0.00909478,3127.8,3127.7,6.56382476]
[1641907966788,0.00909478,3127.8,3127.7,0.76382476]
[1641907967189,0.00909478,3127.8,3127.7,3.48187045]
[1641907969791,0.00909478,3127.8,3127.7,0.76382476]
[1641907969990,1.79937,3128.7,3128.2,0.01818956]
[1641907970194,1.79937,3128.7,3127.7,0.76382476]
[1641907970393,0.00454739,3128.6,3127.7,0.76382476]
[1641907970847,0.00397896,3128.5,3127.7,0.76382476]
[1641907971248,0.00341054,3128.4,3127.7,0.76382476]
[1641907971549,0.00284211,3128.3,3127.7,0.76382476]
[1641907971948,0.00227369,3128.2,3128.1,1.10168188]
[1641907973751,1.37456033,3129.0,3128.7,1.43256965]
[1641907973950,1.67456033,3129.0,3128.7,1.43256965]
[1641907974149,1.67456033,3129.0,3127.9,4.9124]
[1641907974150,0.00397897,3128.9,3127.9,4.9124]
[1641907974403,0.00397897,3128.9,3127.9,3.6917]
[1641907974604,0.38339359,3128.8,3128.0,0.00113685]
[1641907974808,3.13454767,3128.7,3128.0,0.00113685]
[1641907975002,3.13454767,3128.7,3127.8,0.00227369]
[1641907975003,3.43738979,3128.7,3127.8,0.00227369]
[1641907975204,1.0022737,3128.6,3127.8,0.00227369]
[1641907975405,2.95445418,3128.5,3127.8,0.00227369]
[1641907975604,1.0,3128.4,3127.8,0.00227369]
[1641907975803,0.79957,3128.1,3127.8,0.00227369]
[1641907976007,3.18602197,3128.0,3127.8,0.00227369]
[1641907976204,3.18602197,3128.0,3127.0,3.6798]
[1641907976205,8.30403475,3127.9,3127.3,0.00511581]
[1641907976403,3.85403475,3127.9,3127.1,0.00625266]
[1641907976707,1.0,3127.8,3127.1,0.84201788]
[1641907976903,1.0,3127.8,3127.2,1.35014772]
[1641907977106,1.0,3127.8,3127.2,1.35583195]
[1641907977303,1.0,3127.8,3127.3,0.00511581]
[1641907977508,1.3,3128.0,3127.3,0.00511581]
[1641907977703,2.09967,3128.0,3127.3,0.00511581]
[1641907977903,0.3,3127.9,3127.3,0.00511581]
[1641907978141,2.09967,3128.0,3127.3,0.00511581]
[1641907978836,2.04967,3128.0,3127.3,0.00511581]
[1641907979835,1.99967,3128.0,3127.3,0.00511581]
[1641907980040,1.79967,3128.0,3127.3,0.00511581]
[1641907980238,2.09967,3128.0,3127.7,4.06169826]
[1641907980437,1.09967,3128.0,3127.7,4.06169826]
[1641907980636,2.09967,3128.0,3127.8,0.00227369]
[1641907980838,1.09967,3128.0,3127.8,0.00227369]
[1641907981037,2.09967,3128.0,3127.8,0.00227369]
[1641907981238,1.39967,3128.0,3127.8,0.00227369]
[1641907981439,2.39967,3128.0,3127.8,0.00227369]
[1641907981639,2.39967,3128.0,3127.8,2.71983406]
[1641907982095,2.39967,3128.0,3127.9,0.00170527]
[1641907982396,2.39967,3128.0,3127.8,0.00227369]
[1641907982996,3.1993876,3128.0,3127.8,0.00227369]
[1641907983196,4.75,3127.9,3127.7,2.71756037]
[1641907983397,3.1493876,3128.0,3127.7,2.71756037]
[1641907983601,3.1493876,3128.0,3127.6,2.71756037]
[1641907983798,3.0993876,3128.0,3127.6,2.71756037]
[1641907984199,3.0993876,3128.0,3127.9,3.22847989]
[1641907984400,2.29967,3128.0,3127.9,3.22847989]
[1641907984600,2.30080685,3128.0,3127.9,3.22847989]
[1641907985299,1.59922,3128.1,3127.6,2.71756037]
[1641907985741,1.59922,3128.1,3127.9,2.71756037]
[1641907986143,3.94967,3128.0,3127.9,2.71756037]
[1641907986340,3.94967,3128.0,3127.7,2.71926565]
[1641907986546,3.19522895,3127.9,3127.7,2.71926565]
[1641907986745,3.19522895,3127.9,3127.5,4.06169826]
[1641907986746,6.75,3127.7,3127.5,4.06169826]
[1641907986942,6.75,3127.5,3127.0,5.41910502]
[1641907987142,0.79995,3127.3,3127.0,5.41910502]
[1641907987345,5.55,3127.1,3126.5,6.7694971]
[1641907987542,1.464,3127.0,3126.9,0.68467221]
[1641907987750,1.764,3127.0,3126.9,0.68467221]
[1641907987943,0.764,3127.0,3126.9,0.68467221]
[1641907988142,1.064,3127.0,3126.9,0.68467221]
[1641907988546,0.79987,3126.8,3126.6,0.00795793]
[1641907988744,1.17163001,3127.0,3126.6,0.00795793]
[1641907988945,1.0,3126.9,3126.5,0.00852636]
[1641907989146,1.63563001,3127.0,3126.5,0.00852636]
[1641907989592,0.79987,3126.8,3126.5,0.00852636]
[1641907989792,0.79987,3126.8,3126.6,0.66017284]
[1641907989995,0.79987,3126.8,3126.7,1.50977834]
[1641907990193,0.79987,3126.8,3126.7,1.51716785]
[1641907990592,0.79987,3126.8,3126.7,0.00738951]
[1641907990795,1.09987,3126.8,3126.7,0.00738951]
[1641907992095,0.79987,3126.8,3126.7,0.00738951]
[1641907992496,1.09987,3126.8,3126.7,0.00738951]
[1641907992903,3.654612,3126.8,3126.7,0.00738951]
[1641907993145,3.654612,3126.8,3126.1,6.7694971]
[1641907993146,5.4,3126.7,3126.1,6.7694971]
[1641907993345,5.4,3126.7,3126.2,0.01023163]
[1641907993346,0.80003,3126.4,3126.2,0.01023163]
[1641907997387,0.80003,3126.4,3126.2,1.63104736]
[1641907997786,0.80003,3126.4,3126.3,0.00227369]
[1641907998387,0.80003,3126.4,3126.2,0.00284212]
[1641907998590,3.74475129,3126.4,3126.2,0.00284212]
[1641907998789,3.74475129,3126.4,3126.1,1.62081573]
[1641907998790,6.15,3126.2,3126.1,1.62081573]
[1641907998991,10.52550347,3126.2,3126.1,1.62081573]
[1641907999190,0.04601448,3126.1,3125.0,1.2179]
[1641907999389,0.80021,3125.7,3125.0,1.2179]
[1641907999591,1.79511,3125.7,3125.1,0.00625266]
[1641908000092,1.79511,3125.7,3125.0,0.6985519]
[1641908000093,3.09511,3125.7,3125.0,0.6985519]
[1641908000292,5.01385539,3125.7,3125.0,0.00682108]
[1641908000557,5.00225539,3125.7,3125.0,0.00682108]
[1641908000743,0.80023,3125.4,3125.0,0.00682108]
[1641908000939,0.80023,3125.4,3124.9,1.47102508]
[1641908001135,0.80023,3125.4,3124.4,1.62081573]
[1641908001136,0.00170527,3125.3,3124.4,1.62081573]
[1641908001548,0.46513685,3125.2,3124.6,0.00227369]
[1641908001738,0.464,3125.1,3124.6,0.00227369]
[1641908001938,0.80031,3125.0,3124.6,0.00227369]
[1641908002138,1.56431,3125.0,3124.6,0.00227369]
[1641908002337,1.56431,3125.0,3124.3,0.00397896]
[1641908002537,0.764,3125.0,3124.3,0.00397896]
[1641908002940,1.764,3125.0,3124.3,0.00397896]
[1641908003140,0.80045,3124.7,3124.3,0.00397896]
[1641908003345,0.464,3125.0,3124.6,1.48373372]
[1641908003739,0.464,3125.0,3124.7,0.00170527]
[1641908004139,1.26433,3125.0,3124.7,0.00170527]
[1641908007090,1.26433,3125.0,3124.7,2.72112361]
[1641908007492,1.26433,3125.0,3124.8,0.00113685]
[1641908008144,1.26433,3125.0,3124.7,0.00170527]
[1641908008739,1.26433,3125.0,3124.7,2.65716206]
[1641908009247,0.00113685,3124.9,3124.6,1.48373372]
[1641908013291,0.00113685,3124.9,3124.2,0.91505663]
[1641908013698,0.80041,3124.7,3124.3,0.00227369]
[1641908014092,1.10041,3124.7,3124.3,0.00227369]
[1641908014592,2.10041,3124.7,3124.3,0.00227369]
[1641908014792,1.80041,3124.7,3124.3,0.00227369]
[1641908014991,0.80041,3124.7,3124.3,0.00227369]
[1641908015191,2.26441,3124.7,3124.3,0.00227369]
[1641908015393,2.56441,3124.7,3124.3,0.00227369]
[1641908015640,2.56441,3124.7,3124.2,0.00284212]
[1641908016641,2.86441,3124.7,3124.2,0.00284212]
[1641908017041,2.56441,3124.7,3124.2,0.00284212]
[1641908017445,2.59109304,3124.6,3124.2,0.00284212]
[1641908017644,6.75,3124.4,3124.1,1.62081573]
[1641908017843,4.65072,3124.2,3124.1,1.62081573]
[1641908018044,2.26472,3124.2,3124.1,1.62081573]
[1641908018243,2.56472,3124.2,3124.1,1.62081573]
[1641908018441,1.86472,3124.2,3124.1,1.55681573]
[1641908018748,1.6013,3124.0,3123.8,0.7037371]
[1641908019042,0.3,3124.0,3123.9,0.00170527]
[1641908019295,1.0,3124.1,3123.9,0.00170527]
[1641908019495,1.80072,3124.2,3123.9,0.00170527]
[1641908019697,0.0022737,3124.6,3123.9,0.00170527]
[1641908020097,0.464,3125.1,3124.5,1.38467562]
[1641908020498,0.00454739,3125.0,3123.9,1.23990527]
[1641908020698,0.80041,3124.6,3123.9,1.23990527]
[1641908020899,0.80041,3124.6,3124.0,0.00113684]
[1641908021098,0.00170527,3124.5,3124.0,0.00113684]
[1641908021499,0.00113685,3124.4,3124.1,1.36199155]
[1641908021900,0.00397897,3124.9,3124.8,0.7154024]
[1641908024741,0.80016,3125.6,3125.4,1.18545234]
[1641908024939,3.9048,3125.9,3124.8,0.7154024]
[1641908025140,3.8346642,3126.1,3124.8,0.7154024]
[1641908025141,0.00341054,3125.5,3124.8,0.7154024]
[1641908025539,0.00284211,3125.4,3124.8,0.7154024]
[1641908025940,0.00227369,3125.3,3124.9,1.11258827]
[1641908026340,0.00170527,3125.2,3124.9,1.11258827]
[1641908026788,0.00113684,3125.1,3124.9,1.11258827]
[1641908027189,0.00284211,3125.4,3124.9,1.11258827]
[1641908027389,0.80023,3125.3,3124.9,1.11258827]
[1641908027591,0.80250369,3125.3,3124.9,1.11258827]
[1641908027890,0.00170527,3125.2,3124.9,1.11258827]
[1641908028290,0.00113684,3125.1,3124.9,3.54556342]
[1641908028596,5.3288152,3126.2,3124.9,3.54556342]
[1641908028597,0.00284211,3125.4,3125.0,9.55797499]
[1641908028789,0.00284211,3125.4,3125.0,7.7756]
[1641908028991,0.00227369,3125.3,3125.0,7.7756]
[1641908029389,0.00170527,3125.2,3125.0,7.7756]
[1641908029593,0.00170527,3125.2,3125.1,7.96882721]
[1641908029789,0.79995,3126.4,3125.1,7.96882721]
[1641908029989,0.79995,3126.4,3125.8,1.14740509]
[1641908030192,0.00625266,3126.0,3125.8,1.14740509]
[1641908030404,0.00625266,3126.0,3125.2,3.83709304]
[1641908030641,0.00568423,3125.9,3125.3,2.52324754]
[1641908030840,0.00568423,3125.9,3125.3,2.42575304]
[1641908031141,0.928209,3126.1,3125.3,2.71882721]
[1641908031142,0.00511581,3125.8,3125.3,2.71882721]
[1641908031339,0.00511581,3125.8,3125.6,1.41893065]
[1641908031639,0.00454738,3125.7,3125.6,1.41893065]
[1641908032848,0.00454738,3125.7,3125.6,4.13775786]
[1641908033942,0.00454738,3125.7,3125.6,2.71882721]
[1641908034400,0.00454738,3125.7,3124.9,7.95451256]
[1641908034598,0.80472738,3125.7,3124.9,7.95451256]
[1641908034893,1.60061,3125.5,3124.9,4.07921256]
[1641908035097,2.06461,3125.5,3125.0,2.71911068]
[1641908035292,0.27457995,3125.3,3125.0,2.71911068]
[1641908035692,0.00170527,3125.2,3125.0,2.71911068]
[1641908035895,0.00170527,3125.2,3124.9,2.71911068]
[1641908036092,0.00113684,3125.1,3124.9,2.71911068]